[Event "Centenario Panaderia Pulido 2023"]
[Site "San Mateo Gran Canaria"]
[Date "2023.12.05"]
[Round "3.7"]
[White "Kurajica, Bojan"]
[Black "Rivero Castellano, Carlos Jesus"]
[Result "1-0"]
[ECO "B06"]
[WhiteElo "2446"]
[BlackElo "1726"]
[Annotator "RC"]
[PlyCount "37"]
[EventDate "2023.12.04"]
[EventType "swiss"]
[EventCountry "ESP"]
[SourceTitle "playchess.com"]
[Source "ChessBase"]
[SourceQuality "1"]
[TimeControl "5400+30"]

1. d4 {[%emt 1:31:00]} g6 {[%emt 0:00:09]} 2. e4 {[%emt 0:00:00]} Bg7 {[%emt 0:00:10]} 3. Nf3 {[%emt 0:00:00]} d6 {[%emt 0:00:18]} 4. Bc4 {[%emt 0:00:00]} Nd7 {[%emt 0:01:13]} 5. Bxf7+ {[%emt 0:00:00]} Kf8 {[%emt 0:01:17]} 6. Bb3 {[%emt 0:00:00]} Nb6 {[%emt 0:02:15]} 7. Ng5 {[%emt 0:00:00]} e5 {[%emt 0:02:20]} 8. dxe5 {[%emt 0:00:00]} Bxe5 {[%emt 0:00:09]} 9. Qf3+ {[%emt 0:00:00]} Nf6 {[%emt 0:01:22]} 10. Nf7 {[%emt 0:00:00]} Bg4 {[%emt 0:03:12]} 11. Nxd8 {[%emt 0:00:00]} Bxf3 {[%emt 0:00:11]} 12. Ne6+ {[%emt 0:00:00]} Ke7 {[%emt 0:00:28]} 13. gxf3 {[%emt 0:00:00]} d5 {[%emt 0:03:04]} 14. Nc5 {[%emt 0:00:00]} Bd4 {[%emt 0:02:35]} 15. Nxb7 {[%emt 0:00:00]} dxe4 {[%emt 0:00:21]} 16. c3 {[%emt 0:00:00]} Be5 {[%emt 0:00:36]} 17. Nd2 {[%emt 0:00:00]} Rab8 {[%emt 0:02:07]} 18. Na5 {[%emt 0:00:00]} Rbf8 {[%emt 0:02:38]} 19. Nxe4 {[%emt 0:00:00]} 1-0

[Event "Centenario Panaderia Pulido 2023"]
[Site "San Mateo Gran Canaria"]
[Date "2023.12.05"]
[Round "3.8"]
[White "Moreno Diepa, Diego"]
[Black "Ramirez Maillo, Juan Adonay"]
[Result "1-0"]
[ECO "B43"]
[WhiteElo "2138"]
[BlackElo "1857"]
[Annotator "RC"]
[PlyCount "57"]
[EventDate "2023.12.04"]
[EventType "swiss"]
[EventCountry "ESP"]
[SourceTitle "playchess.com"]
[Source "ChessBase"]
[SourceQuality "1"]
[TimeControl "5400+30"]

1. e4 {[%emt 0:00:04]} c5 {[%emt 0:00:18]} 2. Nc3 {[%emt 0:00:31]} a6 {[%emt 0:02:03]} 3. Nf3 {[%emt 0:00:20]} b5 {[%emt 0:00:42]} 4. d4 {[%emt 0:00:59]} cxd4 {[%emt 0:00:32]} 5. Nxd4 {[%emt 0:00:05]} Bb7 {[%emt 0:01:01]} 6. Bd3 {[%emt 0:01:07]} e6 {[%emt 0:00:30]} 7. O-O {[%emt 0:00:38]} Qc7 {[%emt 0:00:21]} 8. Re1 {[%emt 0:02:05]} Bd6 {[%emt 0:09:25]} 9. h3 {[%emt 0:02:29]} b4 {[%emt 0:01:46]} 10. Nb1 {[%emt 0:01:52]} Nf6 {[%emt 0:00:19]} 11. Qe2 {[%emt 0:04:34]} O-O {[%emt 0:06:39]} 12. e5 {[%emt 0:02:38]} Bc5 {[%emt 0:00:05]} 13. exf6 {[%emt 0:06:33]} Bxd4 {[%emt 0:00:56]} 14. Bxh7+ {[%emt 0:00:49]} Kxh7 {[%emt 0:00:56]} 15. Qd3+ {[%emt 0:00:03]} Kg8 {[%emt 0:01:06]} 16. Qxd4 {[%emt 0:00:02]} Qxc2 {[%emt 0:03:44]} 17. Qg4 {[%emt 0:05:09]} Qg6 {[%emt 0:00:51]} 18. Qxg6 {[%emt 0:00:07]} fxg6 {[%emt 0:00:05]} 19. fxg7 {[%emt 0:00:05]} Kxg7 {[%emt 0:00:19]} 20. Nd2 {[%emt 0:00:17]} Nc6 {[%emt 0:02:17]} 21. b3 {[%emt 0:01:37]} Ne7 {[%emt 0:03:17]} 22. Bb2+ {[%emt 0:00:53]} Kg8 {[%emt 0:01:49]} 23. Nc4 {[%emt 0:03:23]} Nf5 {[%emt 0:05:51]} 24. Ne5 {[%emt 0:01:32]} Nh4 {[%emt 0:01:11]} 25. Nxd7 {[%emt 0:01:59]} Nxg2 {[%emt 0:04:00]} 26. Nxf8 {[%emt 0:02:18]} Nxe1 27. Rxe1 {[%emt 0:00:09]} Kxf8 {[%emt 0:05:27]} 28. Rxe6 {[%emt 0:00:51]} Re8 {[%emt 0:00:27]} 29. Rf6+ {[%emt 0:02:31]} 1-0

[Event "Centenario Panaderia Pulido 2023"]
[Site "San Mateo Gran Canaria"]
[Date "2023.12.05"]
[Round "3.10"]
[White "Uzcategui Rodriguez, Alejandro"]
[Black "Garcia Rodriguez, Adriana"]
[Result "1-0"]
[ECO "C02"]
[WhiteElo "2235"]
[BlackElo "1659"]
[Annotator "RC"]
[PlyCount "52"]
[EventDate "2023.12.04"]
[EventType "swiss"]
[EventCountry "ESP"]
[SourceTitle "playchess.com"]
[Source "ChessBase"]
[SourceQuality "1"]
[TimeControl "5400+30"]

1. e4 {[%emt 1:31:00]} e6 {[%emt 0:00:02]} 2. d4 {[%emt 0:00:00]} d5 {[%emt 0:00:04]} 3. e5 {[%emt 0:00:00]} c5 {[%emt 0:00:08]} 4. c3 {[%emt 0:00:00]} Nc6 {[%emt 0:00:03]} 5. Nf3 {[%emt 0:00:00]} Qb6 {[%emt 0:00:03]} 6. Bd3 {[%emt 0:00:00]} Bd7 {[%emt 0:00:09]} 7. O-O {[%emt 0:00:00]} cxd4 {[%emt 0:00:15]} 8. Re1 {[%emt 0:00:00]} Nge7 {[%emt 0:01:02]} 9. h4 {[%emt 0:00:00]} h5 {[%emt 0:03:56]} 10. Nbd2 {[%emt 0:00:00]} Nf5 {[%emt 0:03:23]} 11. Nb3 {[%emt 0:00:00]} dxc3 {[%emt 0:00:43]} 12. bxc3 {[%emt 0:00:00]} Bc5 {[%emt 0:01:38]} 13. Nxc5 {[%emt 0:00:00]} Qxc5 {[%emt 0:00:02]} 14. Bxf5 {[%emt 0:00:00]} exf5 {[%emt 0:00:10]} 15. a4 {[%emt 0:00:00]} Qxc3 {[%emt 0:07:57]} 16. Ba3 {[%emt 0:00:00]} Nb4 {[%emt 0:03:31]} 17. Re3 {[%emt 0:00:00]} Qc4 {[%emt 0:00:30]} 18. Rc1 {[%emt 0:00:00]} Qg4 {[%emt 0:00:20]} 19. Qe1 {[%emt 0:00:00]} a5 {[%emt 0:02:13]} 20. e6 {[%emt 0:00:00]} fxe6 {[%emt 0:10:36]} 21. Rxe6+ {[%emt 0:00:00]} Kd8 {[%emt 0:00:43]} 22. Ne5 {[%emt 0:00:00]} Bxe6 {[%emt 0:03:18]} 23. Nxg4 {[%emt 0:00:00]} Re8 {[%emt 0:00:31]} 24. Ne5 {[%emt 0:00:00]} Bg8 {[%emt 0:00:56]} 25. Bxb4 {[%emt 0:00:00]} axb4 {[%emt 0:00:01]} 26. Qxb4 {[%emt 0:00:00]} Rb8 {[%emt 0:02:03]} 1-0

[Event "Centenario Panaderia Pulido 2023"]
[Site "San Mateo Gran Canaria"]
[Date "2023.12.05"]
[Round "3.11"]
[White "Marrero Cardenes, Agustin"]
[Black "Arribas Lopez, Sara"]
[Result "1-0"]
[ECO "E11"]
[WhiteElo "2106"]
[BlackElo "1637"]
[Annotator "RC"]
[PlyCount "51"]
[EventDate "2023.12.04"]
[EventType "swiss"]
[EventCountry "ESP"]
[SourceTitle "playchess.com"]
[Source "ChessBase"]
[SourceQuality "1"]
[TimeControl "5400+30"]

1. d4 {[%emt 0:00:11]} d5 {[%emt 0:00:06]} 2. Nf3 {[%emt 0:00:06]} Nf6 {[%emt 0:00:09]} 3. c4 {[%emt 0:00:11]} e6 {[%emt 0:00:06]} 4. Nc3 {[%emt 0:00:14]} Bb4 {[%emt 0:00:30]} 5. Bd2 {[%emt 0:01:34]} Be7 {[%emt 0:00:14]} 6. Qc2 {[%emt 0:00:38]} c5 {[%emt 0:02:44]} 7. e3 {[%emt 0:00:37]} cxd4 {[%emt 0:00:17]} 8. Nxd4 {[%emt 0:00:31]} Nc6 {[%emt 0:03:04]} 9. cxd5 {[%emt 0:01:13]} exd5 {[%emt 0:01:58]} 10. Nxc6 {[%emt 0:00:47]} bxc6 {[%emt 0:00:08]} 11. Na4 {[%emt 0:00:35]} Bd7 {[%emt 0:00:41]} 12. Bd3 {[%emt 0:01:02]} c5 {[%emt 0:05:33]} 13. Nxc5 {[%emt 0:03:38]} Rc8 {[%emt 0:01:20]} 14. b4 {[%emt 0:00:08]} h5 {[%emt 0:07:18]} 15. Rc1 {[%emt 0:01:36]} h4 {[%emt 0:05:12]} 16. h3 {[%emt 0:03:27]} Bxc5 {[%emt 0:04:28]} 17. bxc5 {[%emt 0:00:49]} Bc6 {[%emt 0:00:09]} 18. O-O {[%emt 0:08:33]} Ne4 {[%emt 0:05:10]} 19. Bc3 {[%emt 0:06:40]} Qg5 {[%emt 0:03:56]} 20. Bd4 {[%emt 0:02:15]} Rh6 {[%emt 0:02:26]} 21. Rb1 {[%emt 0:12:24]} f5 {[%emt 0:02:30]} 22. f3 {[%emt 0:02:00]} Ng3 {[%emt 0:00:12]} 23. Rfe1 {[%emt 0:00:27]} Kf8 {[%emt 0:04:28]} 24. Be5 {[%emt 0:03:12]} Rh5 {[%emt 0:09:33]} 25. Bb5 {[%emt 0:05:59]} Qg6 {[%emt 0:02:48]} 26. Qa4 {[%emt 0:04:08]} 1-0

[Event "Centenario Panaderia Pulido 2023"]
[Site "San Mateo Gran Canaria"]
[Date "2023.12.05"]
[Round "3.12"]
[White "Cruz Pino, Adrian"]
[Black "Julien Casteleiro, Ariel"]
[Result "*"]
[ECO "C30"]
[WhiteElo "2048"]
[BlackElo "1609"]
[Annotator "NA RC"]
[PlyCount "29"]
[EventDate "2023.12.04"]
[EventType "swiss"]
[EventCountry "ESP"]
[SourceTitle "playchess.com"]
[Source "ChessBase"]
[SourceQuality "1"]
[TimeControl "5400+30"]

1. e4 {[%emt 0:06:32]} e5 {[%emt 0:00:22]} 2. Nc3 {[%emt 0:00:46]} Nc6 {[%emt 0:00:18]} 3. f4 {[%emt 0:00:19]} d6 {[%emt 0:00:37]} 4. Nf3 {[%emt 0:00:14]} Bg4 {[%emt 1:31:13]} 5. Bb5 {[%emt 0:00:17]} Nf6 {[%emt 1:30:58]} 6. O-O {[%emt 0:00:22]} Be7 {[%emt 0:00:06]} 7. d3 {[%emt 0:00:24]} O-O {[%emt 0:00:15]} 8. Bxc6 {[%emt 0:00:11]} bxc6 {[%emt 0:00:27]} 9. h3 {[%emt 0:01:44]} Bd7 {[%emt 0:00:32]} 10. fxe5 {[%emt 0:00:19]} dxe5 {[%emt 1:30:49]} 11. Nxe5 {[%emt 0:01:39]} Be8 {[%emt 0:01:08]} 12. Be3 {[%emt 0:00:45]} Bd6 {[%emt 0:01:05]} 13. Nc4 {[%emt 0:00:43]} Bg3 {[%emt 0:01:41]} 14. Qf3 {[%emt 0:00:33]} Bd6 {[%emt 0:04:00]} 15. e5 {[%emt 0:00:40]} *

[Event "Centenario Panaderia Pulido 2023"]
[Site "San Mateo Gran Canaria"]
[Date "2023.12.05"]
[Round "3.13"]
[White "Bergero, Simone"]
[Black "Oudeh Mishmesh, Lara"]
[Result "1-0"]
[ECO "D00"]
[WhiteElo "2010"]
[BlackElo "1503"]
[Annotator "RC"]
[PlyCount "77"]
[EventDate "2023.12.04"]
[EventType "swiss"]
[EventCountry "ESP"]
[SourceTitle "playchess.com"]
[Source "ChessBase"]
[SourceQuality "1"]
[TimeControl "5400+30"]

1. d4 {[%emt 0:05:26]} Nf6 {[%emt 1:31:00]} 2. Bg5 {[%emt 0:00:05]} d5 {[%emt 0:00:00]} 3. e3 {[%emt 0:00:21]} e6 {[%emt 0:00:00]} 4. f4 {[%emt 0:04:27]} Be7 {[%emt 0:00:00]} 5. Nf3 {[%emt 0:01:41]} Ne4 {[%emt 0:00:00]} 6. Bxe7 {[%emt 0:00:07]} Qxe7 {[%emt 0:00:00]} 7. c3 {[%emt 0:00:49]} h6 {[%emt 0:00:00]} 8. Nbd2 {[%emt 0:03:11]} Nf6 {[%emt 0:00:00]} 9. Bd3 {[%emt 0:01:01]} b6 {[%emt 0:00:00]} 10. Qe2 {[%emt 0:09:07]} Bb7 {[%emt 0:00:00]} 11. Ne5 {[%emt 0:13:26]} c6 {[%emt 0:00:00]} 12. O-O {[%emt 0:06:40]} Nbd7 {[%emt 0:00:00]} 13. e4 {[%emt 0:06:21]} Rg8 {[%emt 0:00:00]} 14. exd5 {[%emt 0:03:38]} Nxd5 {[%emt 0:00:00]} 15. Nxd7 {[%emt 0:01:04]} Qxd7 {[%emt 0:00:00]} 16. f5 {[%emt 0:00:05]} O-O-O {[%emt 0:00:00]} 17. fxe6 {[%emt 0:00:31]} fxe6 {[%emt 0:00:00]} 18. Ba6 {[%emt 0:00:41]} b5 {[%emt 0:00:00]} 19. Bxb7+ {[%emt 0:00:05]} Kxb7 {[%emt 0:00:00]} 20. Ne4 {[%emt 0:00:26]} Kb8 {[%emt 0:00:00]} 21. Nc5 {[%emt 0:00:24]} Qd6 {[%emt 0:00:00]} 22. Qxe6 {[%emt 0:00:51]} Qxe6 {[%emt 0:00:00]} 23. Nxe6 {[%emt 0:00:02]} Rde8 {[%emt 0:00:00]} 24. Rae1 {[%emt 0:00:58]} Re7 {[%emt 0:00:00]} 25. Nc5 {[%emt 0:02:53]} Rge8 {[%emt 0:00:00]} 26. Rxe7 {[%emt 0:00:26]} Rxe7 {[%emt 0:00:00]} 27. Rf8+ {[%emt 0:00:10]} Kc7 {[%emt 0:00:00]} 28. Kf2 {[%emt 0:05:01]} Ne3 {[%emt 0:00:00]} 29. Kf3 {[%emt 0:04:47]} Nd1 {[%emt 0:14:00]} 30. Ra8 {[%emt 0:00:35]} Kd6 {[%emt 0:00:00]} 31. Ne4+ {[%emt 0:00:46]} Ke6 {[%emt 0:00:00]} 32. b3 {[%emt 0:01:11]} Kf7 {[%emt 0:00:00]} 33. Rc8 {[%emt 0:01:53]} Re6 {[%emt 0:00:00]} 34. Rc7+ {[%emt 0:00:28]} Kf8 {[%emt 0:00:00]} 35. Rxa7 {[%emt 0:01:00]} g5 {[%emt 0:00:00]} 36. a4 {[%emt 0:01:32]} Re7 {[%emt 0:00:00]} 37. Rxe7 {[%emt 0:26:51]} Kxe7 {[%emt 0:00:00]} 38. axb5 {[%emt 0:00:00]} cxb5 {[%emt 0:00:00]} 39. Ke2 {[%emt 0:01:00]} 1-0

[Event "Centenario Panaderia Pulido 2023"]
[Site "San Mateo Gran Canaria"]
[Date "2023.12.05"]
[Round "3.14"]
[White "Almenares Garcia, Mario Adrian"]
[Black "Espinel Rosales, Yeremay"]
[Result "1-0"]
[ECO "A00"]
[WhiteElo "2000"]
[BlackElo "1514"]
[Annotator "RC"]
[PlyCount "109"]
[EventDate "2023.12.04"]
[EventType "swiss"]
[EventCountry "ESP"]
[SourceTitle "playchess.com"]
[Source "ChessBase"]
[SourceQuality "1"]
[TimeControl "5400+30"]

1. e3 {[%emt 0:00:09]} c5 {[%emt 0:00:27]} 2. g3 {[%emt 0:00:10]} Nc6 {[%emt 0:00:39]} 3. Bg2 {[%emt 0:00:09]} Nf6 {[%emt 0:00:22]} 4. Ne2 {[%emt 0:00:11]} d5 {[%emt 0:02:36]} 5. O-O {[%emt 0:00:10]} Bf5 {[%emt 0:00:34]} 6. h3 {[%emt 0:01:32]} e6 {[%emt 0:02:33]} 7. d3 {[%emt 0:00:31]} Bd6 {[%emt 0:00:46]} 8. Nbc3 {[%emt 0:00:14]} Bg6 {[%emt 0:01:07]} 9. b3 {[%emt 0:00:28]} O-O {[%emt 0:00:51]} 10. Bb2 {[%emt 0:00:06]} a6 {[%emt 0:00:53]} 11. Re1 {[%emt 0:00:08]} Rc8 {[%emt 0:01:50]} 12. e4 {[%emt 0:00:22]} d4 {[%emt 0:00:39]} 13. Nb1 {[%emt 0:00:08]} e5 {[%emt 0:01:26]} 14. g4 {[%emt 0:00:29]} h5 {[%emt 0:03:59]} 15. Ng3 {[%emt 0:00:16]} hxg4 {[%emt 0:00:49]} 16. hxg4 {[%emt 0:00:07]} Kh7 {[%emt 0:04:04]} 17. Nd2 {[%emt 0:00:11]} b5 {[%emt 0:00:40]} 18. Bf3 {[%emt 0:00:18]} Rh8 {[%emt 0:00:38]} 19. Kg2 {[%emt 0:00:20]} Kg8 {[%emt 0:00:40]} 20. a4 {[%emt 0:00:19]} Qd7 {[%emt 0:02:30]} 21. axb5 {[%emt 0:00:39]} axb5 {[%emt 0:00:25]} 22. Rh1 {[%emt 0:00:32]} Nb4 {[%emt 0:01:22]} 23. Rxh8+ {[%emt 0:00:41]} Kxh8 {[%emt 0:00:17]} 24. g5 {[%emt 0:00:24]} Nh7 {[%emt 0:03:22]} 25. Bg4 {[%emt 0:00:16]} Qd8 {[%emt 0:00:25]} 26. Bxc8 {[%emt 0:00:09]} Qxc8 {[%emt 0:00:12]} 27. Nf3 {[%emt 0:00:08]} Qd8 {[%emt 0:07:58]} 28. c3 {[%emt 0:00:25]} dxc3 {[%emt 0:00:20]} 29. Bxc3 {[%emt 0:00:09]} Nxg5 {[%emt 0:00:45]} 30. Nxg5 {[%emt 0:00:52]} Qxg5 {[%emt 0:00:33]} 31. Ra8+ {[%emt 0:00:10]} Kh7 {[%emt 0:00:22]} 32. Bd2 {[%emt 0:01:33]} Qh4 {[%emt 0:00:54]} 33. Bxb4 {[%emt 0:01:21]} cxb4 {[%emt 0:00:50]} 34. Qh1 {[%emt 0:00:27]} Qxh1+ {[%emt 0:00:34]} 35. Kxh1 {[%emt 0:00:09]} Bc5 {[%emt 0:01:32]} 36. Kg2 {[%emt 0:00:12]} Bd4 {[%emt 0:01:50]} 37. Rb8 {[%emt 0:00:14]} f6 {[%emt 0:00:46]} 38. Rxb5 {[%emt 0:00:12]} Bc3 {[%emt 0:00:27]} 39. Rb7 {[%emt 0:00:27]} Kh6 {[%emt 0:01:05]} 40. Ne2 {[%emt 0:00:11]} Bd2 {[%emt 0:01:27]} 41. Rc7 {[%emt 0:01:01]} Bh5 {[%emt 0:01:10]} 42. f3 {[%emt 0:00:25]} g5 {[%emt 0:00:59]} 43. d4 {[%emt 0:00:08]} g4 {[%emt 0:00:31]} 44. fxg4 {[%emt 0:01:44]} Bxg4 {[%emt 0:00:07]} 45. d5 {[%emt 0:01:17]} Bxe2 {[%emt 0:00:39]} 46. d6 {[%emt 0:00:09]} Be3 {[%emt 0:04:12]} 47. d7 {[%emt 0:00:18]} Bb6 {[%emt 0:00:41]} 48. d8=Q {[%emt 1:33:59]} Be3 {[%emt 0:52:42]} 49. Kg3 {[%emt 0:00:30]} Bb5 {[%emt 0:00:30]} 50. Kg2 {[%emt 0:00:30]} Bd2 {[%emt 0:00:30]} 51. Qd7 Bxd7 52. Rxd7 {[%emt 0:01:00]} Bc3 {[%emt 0:01:00]} 53. Kg3 {[%emt 0:00:30]} Kg5 {[%emt 0:00:30]} 54. Rg7+ {[%emt 0:00:30]} Kh6 {[%emt 0:00:30]} 55. Rg4 {[%emt 0:00:00]} 1-0

[Event "Centenario Panaderia Pulido 2023"]
[Site "San Mateo Gran Canaria"]
[Date "2023.12.05"]
[Round "3.15"]
[White "Mukhi Talreja, Ishita Tina"]
[Black "Camino Carrio, Nicanor"]
[Result "1/2-1/2"]
[ECO "A48"]
[WhiteElo "1575"]
[BlackElo "1948"]
[Annotator "RC"]
[PlyCount "57"]
[EventDate "2023.12.04"]
[EventType "swiss"]
[EventCountry "ESP"]
[SourceTitle "playchess.com"]
[Source "ChessBase"]
[SourceQuality "1"]
[TimeControl "5400+30"]

1. d4 {[%emt 1:31:00]} Nf6 {[%emt 1:31:00]} 2. Nf3 {[%emt 0:00:00]} g6 {[%emt 0:00:00]} 3. e3 {[%emt 0:00:00]} Bg7 {[%emt 0:00:00]} 4. Be2 {[%emt 0:00:00]} O-O {[%emt 0:00:00]} 5. O-O {[%emt 0:00:00]} d6 {[%emt 0:00:00]} 6. b3 {[%emt 0:00:00]} Nbd7 {[%emt 0:00:00]} 7. Bb2 {[%emt 0:00:00]} c6 {[%emt 0:00:00]} 8. Qc1 {[%emt 0:00:00]} Re8 {[%emt 0:00:00]} 9. Nbd2 {[%emt 0:00:00]} e5 {[%emt 0:00:00]} 10. dxe5 {[%emt 0:00:00]} Nxe5 {[%emt 0:04:30]} 11. Rd1 {[%emt 0:00:00]} Qc7 {[%emt 0:00:00]} 12. h3 a5 {[%emt 0:01:00]} 13. c4 {[%emt 0:00:00]} Bf5 {[%emt 0:00:30]} 14. Nf1 {[%emt 0:00:00]} Ne4 {[%emt 0:00:30]} 15. Nxe5 {[%emt 0:00:00]} dxe5 {[%emt 0:00:00]} 16. Bd3 Rad8 {[%emt 0:01:00]} 17. Bxe4 {[%emt 0:00:00]} Bxe4 {[%emt 0:00:00]} 18. Ng3 {[%emt 0:00:00]} Rxd1+ {[%emt 0:00:00]} 19. Qxd1 {[%emt 0:00:00]} Rd8 {[%emt 0:00:00]} 20. Qe1 {[%emt 0:00:00]} Bf5 {[%emt 0:00:00]} 21. Nxf5 {[%emt 0:00:00]} gxf5 {[%emt 0:00:00]} 22. Rd1 {[%emt 0:00:00]} b6 {[%emt 0:00:00]} 23. Rd2 {[%emt 0:00:00]} e4 {[%emt 0:03:30]} 24. Bxg7 {[%emt 0:11:30]} Rxd2 {[%emt 0:00:30]} 25. Qxd2 {[%emt 0:00:30]} Kxg7 {[%emt 0:00:30]} 26. Qd4+ {[%emt 0:00:30]} f6 {[%emt 0:00:30]} 27. Qc3 {[%emt 0:00:30]} c5 28. Qb2 {[%emt 0:00:30]} Qd6 {[%emt 0:01:00]} 29. Qd4 {[%emt 0:00:30]} 1/2-1/2

[Event "Centenario Panaderia Pulido 2023"]
[Site "San Mateo Gran Canaria"]
[Date "2023.12.06"]
[Round "4.1"]
[White "Korneev, Oleg"]
[Black "Larino Nieto, David"]
[Result "1-0"]
[ECO "B07"]
[WhiteElo "2470"]
[BlackElo "2366"]
[Annotator "RC"]
[PlyCount "75"]
[EventDate "2023.12.04"]
[EventType "swiss"]
[EventCountry "ESP"]
[SourceTitle "playchess.com"]
[Source "ChessBase"]
[SourceQuality "1"]
[TimeControl "5400+30"]

1. e4 {[%emt 0:04:19]} d6 {[%emt 0:00:01]} 2. d4 {[%emt 0:00:20]} Nd7 {[%emt 0:00:02]} 3. Nc3 {[%emt 0:00:09]} a6 {[%emt 0:00:08]} 4. Be3 {[%emt 0:03:16]} e6 {[%emt 0:01:06]} 5. Nf3 {[%emt 0:05:54]} b5 {[%emt 0:03:37]} 6. a4 {[%emt 0:08:42]} b4 {[%emt 0:00:20]} 7. Ne2 {[%emt 0:00:03]} Bb7 {[%emt 0:01:21]} 8. Ng3 {[%emt 0:00:05]} Ngf6 {[%emt 0:00:32]} 9. Bd3 {[%emt 0:00:20]} c5 {[%emt 0:00:10]} 10. c3 {[%emt 0:15:36]} c4 {[%emt 0:05:31]} 11. Bb1 {[%emt 0:01:11]} b3 {[%emt 0:00:06]} 12. Qe2 {[%emt 0:02:42]} Qc7 {[%emt 0:06:02]} 13. a5 {[%emt 0:01:03]} d5 {[%emt 0:01:16]} 14. e5 {[%emt 0:00:18]} Ng8 {[%emt 0:00:24]} 15. O-O {[%emt 0:00:36]} g6 {[%emt 0:01:36]} 16. h4 {[%emt 0:00:37]} Nb8 {[%emt 0:02:55]} 17. Ng5 {[%emt 0:01:43]} Nc6 {[%emt 0:01:54]} 18. Qf3 {[%emt 0:00:31]} Qe7 {[%emt 0:01:55]} 19. h5 {[%emt 0:05:03]} Bh6 {[%emt 0:08:31]} 20. Qg4 {[%emt 0:12:37]} Kd7 {[%emt 0:08:03]} 21. f4 {[%emt 0:06:22]} f5 {[%emt 0:00:25]} 22. exf6 {[%emt 0:04:02]} Nxf6 {[%emt 0:00:03]} 23. Qh3 {[%emt 0:00:21]} Rag8 {[%emt 0:02:25]} 24. f5 {[%emt 0:02:30]} Nd8 {[%emt 0:18:21]} 25. fxe6+ {[%emt 0:05:48]} Kc6 {[%emt 0:05:06]} 26. Ra4 {[%emt 0:00:21]} Nxe6 {[%emt 0:02:22]} 27. Rb4 {[%emt 0:04:50]} Nd7 {[%emt 0:03:01]} 28. Nf5 {[%emt 0:05:49]} gxf5 {[%emt 0:00:21]} 29. Nxe6 {[%emt 0:01:03]} Rxg2+ {[%emt 0:09:11]} 30. Kxg2 {[%emt 0:00:17]} Rg8+ {[%emt 0:00:01]} 31. Kh1 {[%emt 0:02:24]} Rg4 {[%emt 0:05:53]} 32. Bxf5 {[%emt 0:02:13]} Rh4 {[%emt 0:00:10]} 33. Bxh6 {[%emt 0:00:15]} Rxh3+ {[%emt 0:00:05]} 34. Bxh3 {[%emt 0:00:02]} Qh4 {[%emt 0:00:09]} 35. Nd8+ {[%emt 0:03:47]} Kc7 {[%emt 0:12:36]} 36. Rxb7+ {[%emt 0:00:14]} Kxd8 {[%emt 0:00:02]} 37. Rxd7+ {[%emt 0:00:12]} Ke8 {[%emt 0:00:01]} 38. Rf8# {[%emt 0:00:07]} 1-0

[Event "Centenario Panaderia Pulido 2023"]
[Site "San Mateo Gran Canaria"]
[Date "2023.12.06"]
[Round "4.2"]
[White "Strikovic, Aleksa"]
[Black "Yao, Stefano"]
[Result "1-0"]
[ECO "A28"]
[WhiteElo "2455"]
[BlackElo "2288"]
[Annotator "RC"]
[PlyCount "80"]
[EventDate "2023.12.04"]
[EventType "swiss"]
[EventCountry "ESP"]
[SourceTitle "playchess.com"]
[Source "ChessBase"]
[SourceQuality "1"]
[TimeControl "5400+30"]

1. c4 {[%emt 0:00:03]} e5 {[%emt 0:03:46]} 2. Nc3 {[%emt 0:00:51]} Nf6 {[%emt 0:00:08]} 3. Nf3 {[%emt 0:00:07]} Nc6 {[%emt 0:02:08]} 4. d4 {[%emt 0:00:09]} exd4 {[%emt 0:00:51]} 5. Nxd4 {[%emt 0:00:08]} Bb4 {[%emt 0:00:23]} 6. g3 {[%emt 0:00:15]} Na5 {[%emt 0:00:20]} 7. Qd3 {[%emt 0:05:18]} d5 {[%emt 0:00:34]} 8. cxd5 {[%emt 0:08:31]} Qxd5 {[%emt 0:00:17]} 9. f3 {[%emt 0:00:06]} O-O {[%emt 0:08:28]} 10. a3 {[%emt 0:18:19]} Bxc3+ {[%emt 0:01:10]} 11. Qxc3 {[%emt 0:00:02]} Rd8 {[%emt 0:11:04]} 12. Be3 {[%emt 0:31:21]} c5 {[%emt 0:30:40]} 13. Nb5 {[%emt 0:19:02]} Nb3 {[%emt 0:03:43]} 14. Nc7 {[%emt 0:01:03]} Nxa1 {[%emt 0:33:58]} 15. Nxd5 {[%emt 0:00:41]} Nxd5 {[%emt 0:00:00]} 16. Qd2 {[%emt 0:02:31]} Bf5 {[%emt 0:00:00]} 17. Kf2 {[%emt 0:01:29]} Nb3 {[%emt 0:00:00]} 18. Qd1 {[%emt 0:03:01]} c4 {[%emt 0:00:00]} 19. Bg5 {[%emt 0:00:19]} Ne7 {[%emt 0:00:00]} 20. Qe1 {[%emt 0:01:03]} f6 {[%emt 0:00:00]} 21. e4 {[%emt 0:00:06]} Be6 {[%emt 0:00:00]} 22. Be3 {[%emt 0:00:19]} Nc6 {[%emt 0:00:00]} 23. Qc3 {[%emt 0:00:58]} b5 {[%emt 0:00:00]} 24. Be2 {[%emt 0:00:40]} Nbd4 {[%emt 0:00:00]} 25. Bxd4 {[%emt 0:01:54]} Rxd4 {[%emt 0:00:00]} 26. Rd1 {[%emt 0:00:35]} Rxd1 {[%emt 0:00:00]} 27. Bxd1 {[%emt 0:00:02]} Rd8 {[%emt 0:00:04]} 28. Be2 {[%emt 0:00:01]} a5 {[%emt 0:00:38]} 29. Ke3 {[%emt 0:01:57]} b4 {[%emt 0:00:55]} 30. axb4 {[%emt 0:00:07]} axb4 {[%emt 0:00:03]} 31. Qc1 {[%emt 0:00:09]} Ne5 {[%emt 0:00:27]} 32. f4 {[%emt 0:01:44]} Nd3 {[%emt 0:00:50]} 33. Qa1 {[%emt 0:00:09]} b3 {[%emt 0:02:08]} 34. Qa5 {[%emt 0:00:40]} Rc8 {[%emt 0:02:24]} 35. Qa6 {[%emt 0:01:03]} Nc5 {[%emt 0:00:15]} 36. Bxc4 {[%emt 0:00:42]} Nxa6 {[%emt 0:00:36]} 37. Bxe6+ {[%emt 0:00:06]} Kf8 {[%emt 0:00:03]} 38. Bxc8 {[%emt 0:00:06]} Nc5 {[%emt 0:00:03]} 39. Kd4 {[%emt 0:00:08]} Na4 {[%emt 0:00:23]} 40. Be6 {[%emt 0:00:02]} Ke8 {[%emt 0:04:11]} 1-0